bitfinex/quotes_SOLUSD_20250406
["timestamp","ask_amount","ask_price","bid_price","bid_amount"]
[1743973814610,18.64964886,106.57,106.52,68.9398881]
[1743973815038,18.64964886,106.55,106.53,14.50950217]
[1743973815206,0.14216157,106.57,106.53,14.50950217]
[1743973815400,87.8738601,106.57,106.53,14.50950217]
[1743973815597,18.64964886,106.55,106.53,14.50950217]
[1743973815832,18.64964886,106.56,106.53,14.50950217]
[1743973816296,18.64964886,106.56,106.52,68.9398881]
[1743973816500,18.64964886,106.56,106.51,68.9398881]
[1743973816928,78.3244881,106.56,106.5,14.50950217]
[1743973817238,18.64964886,106.52,106.5,14.50950217]
[1743973817536,31.52964886,106.52,106.5,14.50950217]
[1743973817905,0.28432314,106.51,106.5,14.50950217]
[1743973818123,69.22421124,106.51,106.5,14.50950217]
[1743973818623,18.64964886,106.5,106.48,14.50950217]
[1743973819832,18.64964886,106.5,106.46,68.9398881]
[1743973820407,20.9044,106.52,106.48,68.9398881]
[1743973820599,12.88,106.52,106.48,68.9398881]
[1743973820799,12.88,106.52,106.49,68.9398881]
[1743973821104,12.88,106.52,106.45,0.14216157]
[1743973821105,12.88,106.52,106.48,68.9398881]
[1743973821500,12.88,106.52,106.47,26.0]
[1743973821700,12.88,106.52,106.48,68.9398881]
[1743973821932,12.88,106.52,106.49,68.9398881]
[1743973822719,1.8159,106.54,106.51,68.9398881]
[1743973823023,14.6959,106.54,106.51,68.9398881]
[1743973823335,12.88,106.54,106.51,68.9398881]
[1743973823642,351.84,106.56,106.52,68.9398881]
[1743973823840,12.86,106.57,106.52,68.9398881]
[1743973824047,68.9398881,106.55,106.49,14.50950217]
[1743973824228,68.9398881,106.55,106.5,68.9398881]
[1743973824431,18.64964886,106.56,106.52,68.9398881]
[1743973825231,12.86,106.57,106.52,78.3275881]
[1743973825546,12.86,106.57,106.53,68.9398881]
[1743973825917,87.58953696,106.56,106.51,68.9398881]
[1743973826118,18.64964886,106.56,106.51,68.9398881]
[1743973826352,18.64964886,106.56,106.52,68.9398881]
[1743973826521,18.64964886,106.56,106.51,68.9398881]
[1743973826722,18.64964886,106.56,106.52,68.9398881]
[1743973827542,18.64964886,106.56,106.5,83.44939027]
[1743973827543,18.64964886,106.55,106.5,83.44939027]
[1743973828750,18.64964886,106.55,106.47,83.87564128]
[1743973828751,0.28432314,106.54,106.47,26.0]
[1743973828937,87.8738601,106.54,106.49,68.9398881]
[1743973829135,87.8738601,106.54,106.47,35.3918]
[1743973829445,87.8738601,106.54,106.48,68.9398881]
[1743973829820,68.9398881,106.53,106.47,68.9398881]
[1743973830020,18.64964886,106.52,106.47,68.9398881]
[1743973830430,18.64964886,106.51,106.46,68.9398881]
[1743973830757,18.64964886,106.51,106.45,9.394]
[1743973831062,18.64964886,106.5,106.45,68.9398881]
[1743973831930,18.64964886,106.5,106.44,0.03]
[1743973831931,87.58953696,106.49,106.44,0.03]
[1743973832135,18.64964886,106.46,106.44,0.03]
[1743973832346,31.50964886,106.46,106.44,0.03]
[1743973833047,87.58953696,106.45,106.44,0.03]
[1743973833856,12.86,106.46,106.44,0.03]
[1743973834043,12.86,106.5,106.44,0.03]
[1743973834243,87.58953696,106.49,106.44,68.9698881]
[1743973834446,87.58953696,106.49,106.44,0.03]
[1743973834830,87.58953696,106.49,106.44,68.9698881]
[1743973835246,87.58953696,106.49,106.44,0.03]
[1743973835552,68.9398881,106.48,106.44,0.03]
[1743973836061,18.64964886,106.49,106.44,0.03]
[1743973836357,18.64964886,106.49,106.45,68.9398881]
[1743973836554,87.58953696,106.46,106.44,0.03]
[1743973836928,18.64964886,106.46,106.44,0.03]
[1743973837253,87.58953696,106.46,106.44,0.03]
[1743973837423,18.64964886,106.46,106.44,0.03]
[1743973837855,68.9398881,106.49,106.44,0.03]
[1743973838026,18.64964886,106.49,106.45,68.9398881]
[1743973838227,18.64964886,106.47,106.44,0.03]
[1743973839022,13.14432314,106.48,106.44,0.03]
[1743973839646,18.64964886,106.47,106.44,0.03]
[1743973839851,12.86,106.48,106.44,0.03]
[1743973840152,12.86,106.48,106.45,68.9398881]
[1743973840657,68.9398881,106.5,106.44,68.9698881]
[1743973840832,87.58953696,106.49,106.44,68.9698881]
[1743973841027,100.42953696,106.49,106.44,68.9698881]
[1743973841644,12.84,106.49,106.44,9.4249]
[1743973841825,18.64964886,106.48,106.44,0.03]
[1743973842030,87.58953696,106.48,106.44,0.03]
[1743973842238,18.64964886,106.48,106.44,0.03]
[1743973842529,81.7798881,106.49,106.44,68.9698881]
[1743973842732,12.84,106.49,106.45,68.9398881]
[1743973842933,12.84,106.49,106.45,9.394]
[1743973843255,12.84,106.49,106.46,68.9398881]
[1743973843429,12.84,106.49,106.46,45.9101904]
[1743973843631,58.7501904,106.49,106.44,0.03]
[1743973843831,58.7501904,106.49,106.44,55.3348904]
[1743973844031,12.84,106.49,106.44,55.3348904]
[1743973845064,399.6578904,106.51,106.46,45.9101904]
[1743973845258,12.84,106.5,106.46,45.9101904]
[1743973845432,58.7501904,106.5,106.45,45.9101904]
[1743973845633,12.84,106.5,106.45,45.9101904]
[1743973846162,58.7501904,106.5,106.45,45.9101904]
[1743973846552,58.7501904,106.5,106.44,45.9401904]
[1743973847130,20.55734886,106.51,106.47,45.9101904]
[1743973847333,1.9077,106.51,106.47,45.9101904]
[1743973847638,58.7501904,106.53,106.45,0.14216157]
[1743973847960,18.64964886,106.52,106.47,45.9101904]
[1743973848264,12.84,106.53,106.49,45.9101904]
[1743973849062,12.84,106.53,106.51,45.9101904]
[1743973849570,12.84,106.55,106.52,45.9101904]
[1743973849739,1.9333,106.56,106.52,45.9101904]
[1743973850965,18.64964886,106.57,106.53,45.9101904]
[1743973851152,64.55983926,106.57,106.52,45.9101904]
[1743973851360,64.55983926,106.57,106.5,42.96799605]
[1743973851661,64.55983926,106.57,106.51,45.9101904]
[1743973851836,45.9101904,106.54,106.45,23.4843]
[1743973852033,31.46964886,106.53,106.47,45.9101904]
[1743973852241,31.46964886,106.53,106.48,45.9101904]
[1743973852835,12.82,106.53,106.48,45.9101904]
[1743973853034,12.82,106.53,106.49,55.3000904]
[1743973853234,12.82,106.53,106.48,45.9101904]
[1743973853656,12.82,106.53,106.44,0.03]
[1743973853657,45.9101904,106.5,106.44,0.03]
[1743973853863,64.55983926,106.51,106.46,45.9101904]
[1743973854043,18.64964886,106.51,106.46,45.9101904]
[1743973854374,18.64964886,106.51,106.47,45.9101904]
[1743973854679,18.64964886,106.51,106.46,45.9101904]
[1743973854968,64.55983926,106.51,106.46,45.9101904]
[1743973855349,18.64964886,106.51,106.46,45.9101904]
[1743973856283,18.64964886,106.51,106.46,55.3032904]
[1743973856574,2.0258,106.52,106.47,45.9101904]
[1743973856866,2.0258,106.52,106.46,9.3931]
[1743973856867,2.0258,106.52,106.49,45.9101904]
[1743973857076,2.0258,106.52,106.48,45.9101904]
[1743973857240,47.9359904,106.52,106.47,45.9101904]
[1743973857634,2.0258,106.52,106.48,45.9101904]
[1743973858254,2.0258,106.52,106.49,45.9101904]
[1743973858442,2.0258,106.52,106.48,45.9101904]
[1743973858642,2.0258,106.52,106.5,45.9101904]
[1743973858840,12.82,106.53,106.5,45.9101904]
[1743973859154,12.82,106.53,106.48,45.9101904]
[1743973859332,12.82,106.53,106.5,45.9101904]
[1743973859539,31.46964886,106.55,106.5,45.9101904]
[1743973859971,77.37983926,106.55,106.5,45.9101904]
[1743973860467,0.42648471,106.54,106.47,35.3923]
[1743973860653,0.14216157,106.45,106.39,0.03]
[1743973860854,45.9101904,106.43,106.39,0.03]
[1743973861043,45.9101904,106.42,106.39,0.03]
[1743973861971,18.64964886,106.42,106.39,0.03]
[1743973862277,1.9169,106.43,106.39,0.03]
[1743973862450,1.9169,106.43,106.4,45.9101904]
[1743973862865,12.82,106.44,106.4,55.3081904]
[1743973863366,12.82,106.44,106.4,78.33138107]
[1743973863570,12.82,106.44,106.39,94.96338107]
[1743973863871,18.64964886,106.43,106.39,26.03]
[1743973864180,30.0,106.41,106.39,35.4292]
[1743973864372,30.0,106.41,106.4,68.93338107]
[1743973864562,30.0,106.41,106.39,94.96338107]
[1743973864879,30.0,106.41,106.39,104.36268107]
[1743973865245,30.0,106.41,106.39,0.03]
[1743973866072,30.0,106.41,106.39,78.36258107]
[1743973866573,30.0,106.41,106.39,0.03]
[1743973866884,30.0,106.41,106.39,9.4293]
[1743973867084,30.0,106.41,106.39,0.03]
[1743973867385,30.0,106.41,106.39,68.96338107]
[1743973867891,30.0,106.41,106.4,94.93338107]
[1743973868248,30.0,106.41,106.4,95.07554264]
[1743973868447,1.9239,106.47,106.4,95.35986578]
[1743973868686,12.8,106.49,106.46,68.93338107]
[1743973868988,12.8,106.49,106.48,68.93338107]
[1743973869286,8.0034,106.55,106.48,68.93338107]
[1743973869287,12.8,106.53,106.48,68.93338107]
[1743973869587,12.8,106.53,106.49,68.93338107]
[1743973869789,12.8,106.53,106.5,68.93338107]
[1743973869966,70.85728107,106.55,106.47,32.873]
[1743973870289,68.93338107,106.54,106.49,68.93338107]
[1743973870461,18.64964886,106.54,106.49,68.93338107]
[1743973870669,14.7239,106.55,106.51,68.93338107]
[1743973871029,83.65728107,106.55,106.5,94.93338107]
[1743973871163,33.37354886,106.55,106.5,94.93338107]
[1743973871353,14.7239,106.55,106.51,68.93338107]
[1743973872068,89.2034,106.58,106.53,68.93338107]
[1743973872266,170.93678107,106.58,106.52,68.93338107]
[1743973872484,68.93338107,106.57,106.5,58.8629]
[1743973872791,68.93338107,106.57,106.52,68.93338107]
[1743973872970,18.64964886,106.57,106.52,68.93338107]
[1743973873286,170.93678107,106.58,106.52,78.32078107]
[1743973874195,68.93338107,106.54,106.45,0.14216157]
[1743973874493,18.64964886,106.52,106.47,68.93338107]
[1743973874810,12.8,106.53,106.5,68.93338107]
[1743973874977,12.8,106.53,106.51,68.93338107]
[1743973875290,31.44964886,106.57,106.52,68.93338107]
[1743973875479,100.38302993,106.57,106.51,68.93338107]
[1743973876687,100.38302993,106.57,106.52,68.93338107]
[1743973877079,31.44964886,106.57,106.52,68.93338107]
[1743973877289,100.38302993,106.57,106.52,68.93338107]
[1743973877601,100.38302993,106.57,106.51,68.93338107]
[1743973878102,31.44964886,106.57,106.52,68.93338107]
[1743973878506,31.44964886,106.57,106.53,68.93338107]
[1743973878671,12.8,106.57,106.53,68.93338107]
[1743973879495,89.2034,106.58,106.53,68.93338107]
[1743973879496,81.2,106.58,106.53,68.93338107]
[1743973879694,0.063,106.59,106.55,68.93338107]
[1743973879866,0.063,106.59,106.56,68.93338107]
[1743973880068,0.063,106.59,106.54,68.93338107]
[1743973880069,18.71264886,106.59,106.54,68.93338107]
[1743973880271,18.71264886,106.59,106.54,94.93338107]
[1743973880904,18.71264886,106.59,106.55,68.93338107]
[1743973881200,18.71264886,106.59,106.54,26.0]
[1743973881201,0.063,106.59,106.56,68.93338107]
[1743973881365,0.063,106.59,106.55,68.93338107]
[1743973881568,87.64602993,106.59,106.54,26.0]
[1743973881876,0.063,106.59,106.55,68.93338107]
[1743973882877,87.64602993,106.59,106.51,8.1557]
[1743973883074,18.64964886,106.56,106.51,68.93338107]
[1743973883282,100.36302993,106.56,106.51,68.93338107]
[1743973883488,12.78,106.56,106.53,68.93338107]
[1743973883990,0.063,106.59,106.55,68.93338107]
[1743973884183,0.063,106.59,106.58,68.93338107]
[1743973884497,0.063,106.59,106.57,68.93338107]
[1743973884701,0.063,106.59,106.58,68.93338107]
[1743973884872,0.063,106.6,106.58,68.93338107]
[1743973885077,0.063,106.6,106.59,68.93338107]
[1743973885586,0.063,106.6,106.59,78.45724264]
[1743973886278,0.063,106.6,106.58,9.3823]
[1743973886574,0.063,106.65,106.59,68.93338107]
[1743973886900,0.063,106.65,106.61,68.93338107]
[1743973887084,0.063,106.65,106.6,68.93338107]
[1743973887597,78.37288107,106.65,106.59,68.93338107]
[1743973887799,68.99638107,106.65,106.6,68.93338107]
[1743973888103,0.063,106.65,106.6,68.93338107]
[1743973888273,68.99638107,106.65,106.6,68.93338107]
[1743973888604,18.64964886,106.64,106.6,68.93338107]
[1743973889304,0.063,106.65,106.62,68.93338107]
[1743973889679,0.063,106.65,106.63,68.93338107]
[1743973890207,0.063,106.65,106.64,68.93338107]
[1743973890412,0.063,106.65,106.64,69.07554264]
[1743973890605,0.063,106.69,106.65,0.14216157]
[1743973890816,0.063,106.69,106.68,137.86676214]
[1743973891612,0.063,106.69,106.68,78.30718107]
[1743973891981,0.063,106.69,106.68,78.44934264]
[1743973892521,0.063,106.69,106.68,147.38272371]
[1743973892812,0.063,106.69,106.68,78.44934264]
[1743973893191,0.063,106.69,106.68,69.07554264]
[1743973893529,0.063,106.69,106.62,68.93338107]
[1743973893810,0.063,106.69,106.65,68.93338107]
[1743973894314,0.063,106.69,106.67,68.93338107]
[1743973894610,0.063,106.69,106.68,68.93338107]
[1743973895309,0.063,106.69,106.66,68.93338107]
[1743973895902,0.063,106.69,106.67,68.93338107]
[1743973896302,0.063,106.69,106.66,26.0]
[1743973896713,0.063,106.69,106.66,94.93338107]
[1743973897220,0.063,106.69,106.67,68.93338107]
[1743973897633,0.063,106.69,106.66,26.0]
[1743973898100,0.063,106.69,106.67,68.93338107]
[1743973899714,0.063,106.69,106.68,68.93338107]
[1743973900211,18.64964886,106.73,106.68,68.93338107]
[1743973900212,0.063,106.75,106.69,0.14216157]
[1743973900417,0.063,106.75,106.72,68.93338107]
[1743973900623,0.063,106.75,106.74,68.93338107]
[1743973901518,0.063,106.75,106.73,68.93338107]
[1743973901822,18.71264886,106.75,106.72,94.93338107]
[1743973902503,0.063,106.75,106.72,94.93338107]
[1743973902910,18.71264886,106.75,106.72,94.93338107]
[1743973903709,0.063,106.75,106.72,94.93338107]
[1743973904018,18.71264886,106.75,106.71,94.93338107]
[1743973904227,18.71264886,106.75,106.71,68.93338107]
[1743973904530,69.21770421,106.74,106.64,7.8726]
[1743973904727,100.30302993,106.73,106.65,9.51856157]
[1743973905034,31.36964886,106.73,106.67,68.93338107]
[1743973905234,31.36964886,106.73,106.65,9.51856157]
[1743973905235,31.36964886,106.73,106.7,68.93338107]
[1743973905408,12.72,106.73,106.7,68.93338107]
[1743973905805,31.36964886,106.73,106.69,94.93338107]
[1743973906021,12.72,106.73,106.7,68.93338107]
[1743973906210,31.36964886,106.73,106.69,94.93338107]
[1743973906426,12.72,106.73,106.7,68.93338107]
[1743973907539,12.72,106.73,106.69,94.93338107]
[1743973907738,12.72,106.73,106.7,68.93338107]
[1743973907936,18.64964886,106.72,106.69,68.93338107]
[1743973908142,18.64964886,106.72,106.67,68.93338107]
[1743973908445,18.64964886,106.69,106.64,68.93338107]
[1743973908938,87.86735307,106.71,106.65,68.93338107]
[1743973909107,81.2,106.72,106.67,68.93338107]
[1743973909309,22.0894,106.73,106.68,68.93338107]
[1743973909621,18.64964886,106.72,106.67,68.93338107]
[1743973909819,18.64964886,106.72,106.64,0.14216157]
[1743973909820,96.95362993,106.72,106.66,68.93338107]
[1743973910016,18.64964886,106.7,106.63,9.3782]
[1743973910225,18.64964886,106.7,106.65,68.93338107]
[1743973910809,18.64964886,106.7,106.66,68.93338107]
[1743973911342,2.0489,106.69,106.66,26.0]
[1743973911528,2.0489,106.69,106.66,94.93338107]
[1743973912138,99.84964886,106.72,106.68,68.93338107]
[1743973912841,18.64964886,106.72,106.68,68.93338107]
[1743973913543,18.64964886,106.72,106.67,68.93338107]
[1743973914042,18.64964886,106.72,106.67,78.30778107]
[1743973914217,22.8342,106.73,106.68,68.93338107]
[1743973914645,22.8342,106.73,106.69,68.93338107]
[1743973914941,10.1142,106.73,106.69,68.93338107]
[1743973916414,87.86735307,106.72,106.66,68.93338107]
[1743973916643,18.933972,106.7,106.63,9.52036157]
[1743973916825,12.7,106.69,106.65,68.93338107]
[1743973917147,12.7,106.69,106.66,26.0]
[1743973917916,12.7,106.69,106.66,45.74313192]
[1743973918134,12.7,106.69,106.66,55.11843192]
[1743973919053,12.7,106.69,106.66,45.74313192]
[1743973919349,12.7,106.69,106.66,68.60985084]
[1743973919525,18.64964886,106.72,106.68,94.60985084]
[1743973919723,91.42405084,106.73,106.68,26.0]
[1743973919930,18.933972,106.72,106.68,26.0]
[1743973920154,18.933972,106.72,106.68,9.3738]
[1743973920456,18.933972,106.7,106.65,68.60985084]
[1743973921121,18.933972,106.68,106.63,68.60985084]
[1743973921327,12.7,106.67,106.63,68.60985084]
[1743973921527,12.7,106.67,106.62,68.63985084]
[1743973922158,0.063,106.77,106.69,18.65547688]
[1743973922343,1.8681,107.06,106.98,0.5]
[1743973922548,1.8681,107.06,107.01,68.60985084]
[1743973922744,1.8681,107.06,106.97,68.60985084]
[1743973922745,68.60985084,107.05,106.97,68.60985084]
[1743973922958,28.27175169,106.98,106.95,0.5]
[1743973923146,68.60985084,107.05,106.98,0.5]
[1743973923322,89.14045084,107.08,107.01,68.60985084]
[1743973923671,12.7,107.08,107.04,0.5]
[1743973923966,68.60985084,107.07,106.99,0.5]
[1743973924130,68.60985084,107.05,106.99,68.60985084]
[1743973924457,12.7,107.04,106.98,0.5]
[1743973924637,248.35948286,107.03,106.96,0.5]
[1743973924836,0.28432314,107.0,106.94,68.60985084]
[1743973925160,312.11561034,107.03,106.97,46.87187897]
[1743973925460,419.84985084,107.1,107.04,0.5]
[1743973925626,12.7,107.08,107.05,69.10985084]
[1743973925828,12.7,107.08,107.03,0.5]
[1743973926066,12.7,107.08,107.05,68.60985084]
[1743973926248,12.7,107.08,107.05,0.5]
[1743973926560,12.7,107.08,107.07,68.60985084]
[1743973926864,12.7,107.08,107.07,69.10985084]
[1743973927668,351.24,107.1,107.09,0.5]
[1743973927845,18.933972,107.09,107.03,68.60985084]
[1743973928045,18.933972,107.09,107.04,0.5]
[1743973928046,0.14216157,107.08,107.04,0.5]
[1743973928254,0.14216157,107.08,107.05,68.60985084]
[1743973928446,18.79181043,107.09,107.06,0.5]
[1743973928765,18.79181043,107.09,107.06,68.60985084]
[1743973928935,18.79181043,107.09,107.04,0.5]
[1743973929129,0.14216157,107.08,107.03,69.10985084]
[1743973929366,0.14216157,107.06,107.01,68.60985084]
[1743973929534,0.28432314,107.04,107.01,68.60985084]
[1743973929736,0.28432314,107.04,107.0,9.8455]
[1743973929959,30.28432314,107.04,107.01,68.60985084]
[1743973930269,30.28432314,107.04,107.0,0.5]
[1743973930441,0.28432314,107.02,106.97,0.5]
[1743973930643,0.28432314,107.0,106.96,69.10985084]
[1743973930965,42.68,106.99,106.97,69.10985084]
[1743973931167,42.68,106.99,106.98,0.5]
[1743973931536,42.68,106.99,106.98,69.10985084]
[1743973931841,42.68,106.99,106.96,9.8491]
[1743973932152,42.68,106.99,106.98,69.10985084]
[1743973932356,42.68,106.99,106.98,78.45735084]
[1743973932852,30.0,106.99,106.98,78.45735084]
[1743973933359,30.0,106.99,106.98,147.20936325]
[1743973933860,12.68,107.01,107.0,26.5]
[1743973934175,0.14216157,107.06,107.0,26.5]
[1743973934176,12.68,107.05,107.03,0.5]
[1743973934345,12.68,107.05,107.02,0.5]
[1743973934676,0.28432314,107.03,107.0,68.60985084]
[1743973935041,12.68,107.05,107.01,0.5]
[1743973935364,12.66,107.07,107.05,0.5]
[1743973935667,81.2,107.1,107.02,0.5]
[1743973935857,18.933972,107.08,107.03,69.10985084]
[1743973936067,18.933972,107.08,107.04,0.5]
[1743973936273,363.06,107.11,107.06,69.10985084]
[1743973936552,363.06,107.11,107.07,68.60985084]
[1743973936754,87.54382284,107.1,107.05,68.60985084]
[1743973936974,87.54382284,107.1,107.04,68.60985084]
[1743973937334,0.14216157,107.1,107.07,69.10985084]
[1743973937540,12.66,107.09,107.08,0.5]
[1743973937758,12.66,107.09,107.07,95.10985084]
[1743973937976,0.28432314,107.08,107.05,69.10985084]
[1743973938140,0.14216157,107.08,107.05,68.60985084]
[1743973938339,12.66,107.09,107.08,0.5]
[1743973938538,12.66,107.09,107.07,68.60985084]
[1743973938539,12.80216157,107.09,107.07,0.5]
[1743973938764,0.14216157,107.08,107.04,68.60985084]
[1743973938985,0.28432314,107.08,107.04,68.60985084]
[1743973939276,0.28432314,107.08,107.07,0.5]
[1743973939837,0.28432314,107.08,107.05,68.60985084]
[1743973940073,0.28432314,107.08,107.04,94.60985084]
[1743973940260,18.933972,107.08,107.05,0.5]
[1743973940644,18.933972,107.08,107.05,69.10985084]
[1743973940865,0.28432314,107.08,107.05,69.10985084]
[1743973941573,0.28432314,107.08,107.06,68.60985084]
[1743973941748,0.14216157,107.08,107.06,69.10985084]
[1743973942165,0.28432314,107.08,107.05,68.60985084]
[1743973942373,0.28432314,107.08,107.06,0.5]
[1743973943086,18.933972,107.08,107.06,0.5]
[1743973943289,18.933972,107.08,107.04,94.60985084]
[1743973943450,18.933972,107.08,107.03,26.5]
[1743973943654,18.933972,107.08,107.06,0.5]
[1743973944281,0.28432314,107.08,107.06,69.10985084]
[1743973944464,12.66,107.09,107.07,68.60985084]
[1743973944771,12.66,107.09,107.07,69.10985084]
[1743973945349,12.66,107.1,107.07,69.10985084]
[1743973945971,12.66,107.1,107.09,69.10985084]
[1743973946448,350.4,107.11,107.09,69.10985084]
[1743973946681,350.68432314,107.11,107.1,0.5]
[1743973947085,350.54216157,107.11,107.1,0.5]
[1743973947272,18.79181043,107.1,107.07,0.5]
[1743973947473,0.28432314,107.1,107.08,69.10985084]
[1743973947784,350.4,107.11,107.08,69.10985084]
[1743973947987,350.4,107.11,107.08,68.60985084]
[1743973948190,350.4,107.11,107.09,69.10985084]
[1743973948971,350.4,107.11,107.1,0.5]
[1743973949154,12.94432314,107.12,107.1,0.5]
[1743973949155,0.03,107.14,107.13,0.5]
[1743973949361,0.03,107.14,107.13,69.10985084]
[1743973950268,0.03,107.14,107.13,87.90166127]
[1743973950469,0.03,107.14,107.13,69.25201241]
[1743973950673,0.03,107.14,107.13,78.58641241]
[1743973950867,0.03,107.14,107.13,69.25201241]
[1743973951071,0.03,107.14,107.13,78.58641241]
[1743973951678,0.03,107.14,107.13,97.23606127]
[1743973952057,0.03,107.19,107.16,26.0]
[1743973952364,0.03,107.19,107.18,69.10985084]
[1743973952686,0.03,107.19,107.18,0.5]
[1743973952887,0.03,107.19,107.18,69.10985084]
[1743973953775,0.03,107.19,107.18,78.58201241]
[1743973954102,0.03,107.19,107.18,69.10985084]
[1743973956800,0.03,107.19,107.18,0.5]
[1743973956984,0.03,107.19,107.18,69.10985084]
[1743973957401,0.03,107.19,107.18,78.58201241]
[1743973957605,0.03,107.19,107.18,9.97216157]
[1743973957901,0.03,107.2,107.19,0.5]
[1743973958066,0.03,107.2,107.19,69.10985084]
[1743973958268,0.31432314,107.2,107.18,0.5]
[1743973958500,18.963972,107.2,107.19,0.5]
[1743973959001,28.292272,107.2,107.17,0.5]
[1743973959299,18.963972,107.2,107.17,0.5]
[1743973959470,18.963972,107.2,107.17,68.60985084]
[1743973959670,0.31432314,107.2,107.18,69.10985084]
[1743973959867,0.31432314,107.2,107.18,0.5]
[1743973960084,0.31432314,107.2,107.19,69.10985084]
[1743973960499,0.03,107.2,107.19,69.10985084]
[1743973960698,0.03,107.2,107.19,0.5]
[1743973960997,0.31432314,107.2,107.19,0.5]
[1743973961201,0.03,107.2,107.19,69.10985084]
[1743973961766,0.03,107.2,107.16,77.94125084]
[1743973961767,0.03,107.2,107.17,0.5]
[1743973961989,0.03,107.2,107.19,69.10985084]
[1743973962888,0.03,107.2,107.19,78.43905084]
[1743973963088,0.03,107.2,107.19,78.58121241]
[1743973963271,2.36915161,107.22,107.21,26.64216157]
[1743973963471,2.36915161,107.22,107.21,182.51151211]
[1743973964305,0.73856511,107.24,107.23,87.40166127]
[1743973964599,0.73856511,107.24,107.23,87.90166127]
[1743973964999,0.73856511,107.24,107.23,78.57771241]
[1743973965316,3.02163086,107.25,107.24,0.5]
[1743973965497,3.02163086,107.25,107.24,69.25201241]
[1743973966309,3.02163086,107.25,107.24,87.90166127]
[1743973966873,4.71002394,107.3,107.27,26.5]
[1743973967099,73.31987478,107.3,107.25,0.5]
[1743973967405,18.933972,107.27,107.25,0.5]
[1743973967610,18.933972,107.27,107.23,69.10985084]
[1743973967909,18.933972,107.27,107.24,0.5]
[1743973968314,18.933972,107.27,107.24,69.10985084]
[1743973968680,18.35316584,107.28,107.25,69.10985084]
[1743973968880,0.14216157,107.27,107.25,0.5]
[1743973969203,0.28432314,107.27,107.25,69.10985084]
[1743973969390,0.28432314,107.27,107.25,0.5]
[1743973969591,0.28432314,107.27,107.25,69.10985084]
[1743973969806,18.35316584,107.28,107.26,69.10985084]
[1743973970011,18.35316584,107.28,107.27,0.5]
[1743973970300,18.35316584,107.28,107.26,0.5]
[1743973970503,18.63748898,107.28,107.27,0.5]
[1743973970888,18.35316584,107.28,107.27,0.5]
[1743973971414,18.35316584,107.28,107.26,69.10985084]
[1743973971582,18.49532741,107.28,107.27,0.5]
[1743973971911,0.28432314,107.27,107.26,0.5]
[1743973972719,0.28432314,107.27,107.25,69.10985084]
[1743973972897,0.28432314,107.27,107.26,0.5]
[1743973973610,0.28432314,107.27,107.25,68.60985084]
[1743973973611,0.28432314,107.27,107.25,0.5]
[1743973973813,0.28432314,107.27,107.26,0.5]
[1743973974004,0.28432314,107.27,107.25,0.5]
[1743973974194,18.933972,107.27,107.25,0.5]
[1743973975020,0.28432314,107.27,107.26,0.5]
[1743973975394,18.35316584,107.28,107.26,0.5]
[1743973975603,27.67456584,107.28,107.25,69.10985084]
[1743973975804,0.28432314,107.27,107.26,0.5]
[1743973975995,0.28432314,107.27,107.23,0.5]
[1743973975996,18.933972,107.27,107.23,0.5]
[1743973976200,18.933972,107.27,107.25,0.5]
[1743973976790,0.28432314,107.27,107.25,0.5]
[1743973978521,0.28432314,107.27,107.25,69.10985084]
[1743973978701,12.6,107.26,107.25,0.5]
[1743973978889,31.533972,107.26,107.25,0.5]
[1743973979085,0.28432314,107.24,107.19,0.5]
[1743973979295,12.6,107.26,107.24,0.5]
[1743973979488,0.14216157,107.24,107.22,68.60985084]
[1743973979708,0.28432314,107.24,107.23,0.5]
[1743973980426,0.28432314,107.24,107.2,69.10985084]
[1743973980719,18.933972,107.24,107.23,0.5]
[1743973980898,18.933972,107.24,107.21,68.60985084]
[1743973981105,0.28432314,107.24,107.23,0.5]
[1743973981301,0.28432314,107.24,107.22,68.60985084]
[1743973981501,9.60912314,107.24,107.21,68.60985084]